Cogmind - Beta 12 @@@ ROGUE MODE // 2023.05.09 @ 13:01:38 Player: MoonDog Result: Destroyed by G-47 Trooper with Particle Gun Performance ------------- Evolutions (2) 1000 Regions Visited (3) 600 Robots Destroyed (23) 115 Value Destroyed (767) 767 Prototype IDs (0) 0 Alien Tech Used (0) 0 Bonus (0) 0 TOTAL SCORE: 2482 Bonus ------- None Cogmind --------- Core Integrity 0/550 Matter 300/300 Energy 99/100 System Corruption 0% Temperature Cool (-91) Movement Core (50) Location -8/Materials Parts ------- > --- POWER (1) -------- (None) > --- PROPULSION (3) --- (None) > --- UTILITY (5) ------ Cryofiber Web Structural Scanner Visual Processing Unit Improved Signal Interpreter > --- WEAPON (2) ------- (None) > --- INVENTORY (5) ---- Light Deuterium Engine Improved Hover Unit Sensor Array Hacking Suite Peak State ------------ > --- POWER ------------ Light Nuclear Core > --- PROPULSION ------- Aluminum Leg Aluminum Leg Carbon-fiber Leg > --- UTILITY ---------- Cryofiber Web Structural Scanner Visual Processing Unit Targeting Computer System Restoration Module > --- WEAPON ----------- Greatsword > --- INVENTORY -------- Improved Hover Unit Sensor Array Hacking Suite Greatsword [Rating: 28] Favorites ----------- Power Light Nuclear Core Engine Light Deuterium Engine Power Core Light Nuclear Core Propulsion Wheel Leg Aluminum Leg Wheel Wheel Hover Unit Improved Hover Unit Utility Targeting Computer Device Structural Scanner Processor Targeting Computer Weapon Light Assault Rifle Energy Gun EM Pulse Gun Ballistic Gun Light Assault Rifle Special Weapon Plasma Cutter Slashing Weapon Greatsword Build | -11 -10 -9 -8 ------- Run | Jun Mat Mat Mat Slots Evolved 4 | . . 2 2 Power . | . . . . Propulsion 1 | . . . 1 Utility 3 | . . 2 1 Weapon . | . . . . Parts Attached 34 | 4 . 8 22 Power 4 | . . . 4 Engine 2 | . . . 2 Core 2 | . . . 2 Reactor . | . . . . Propulsion 13 | 2 . . 11 Treads . | . . . . Leg 9 | . . . 9 Wheel 2 | 2 . . . Hover 2 | . . . 2 Flight . | . . . . Utility 9 | . . 5 4 Device 5 | . . 3 2 Storage . | . . . . Processor 4 | . . 2 2 Hackware . | . . . . Protection . | . . . . Artifact . | . . . . Weapon 8 | 2 . 3 3 Energy Gun 1 | . . 1 . Energy Cannon . | . . . . Ballistic Gun 3 | 2 . 1 . Ballistic Cannon . | . . . . Launcher . | . . . . Special Weapon 1 | . . 1 . Impact Weapon . | . . . . Slashing Weapon 3 | . . . 3 Piercing Weapon . | . . . . Special Melee Weapon . | . . . . Unidentified Prototypes . | . . . . Parts Lost 14 | . . 3 11 Power 1 | . . . 1 Propulsion 8 | . . 2 6 Utility 2 | . . . 2 Weapon 3 | . . 1 2 Highest Loss Streak 9 | . . 2 9 To Critical Strikes . | . . . . Average Slot Usage (%) 67 | . 57 61 75 Engine 1 | . . . 3 Core 1 | . . . 3 Leg 8 | . . . 16 Wheel 10 | . 28 14 . Device 15 | . . 13 23 Processor 14 | . . 19 19 Ballistic Gun 9 | . 28 8 . Slashing Weapon 3 | . . . 7 Naked Turns . | . . . . Heaviest Build 13 | 2 2 3 13 Greatest Support 40 | 3 3 3 40 Greatest Overweight (x) 1 | . . . 1 Average Overweight (x) . | . . . . Largest Inventory Capacity 5 | 5 5 5 5 Average Capacity 5 | 5 5 5 5 Most Carried 5 | 2 4 5 5 Average Carried 3 | 1 2 4 4 Final Capacity 5 | 5 5 5 5 Final Carried 5 | 2 4 5 4 Class Distribution -------------------- 68% | Mutant 31% | Scavenger-Mutant Dominant Class ---------------- Mutant | -10/Materials Mutant | -9/Materials Scavenger-Mutant | -8/Materials Resources | -11 -10 -9 -8 ----------- Run | Jun Mat Mat Mat Matter Collected 529 | 250 12 72 195 Remotely . | . . . . Salvage Created 936 | 89 14 138 695 Parts 59 | 6 3 10 40 Haulers Intercepted . | . . . . Recyclers Shooed 1 | 1 . . . Parts Field Recycled . | . . . . Retrieved Matter . | . . . . Parts Self-Destructed . | . . . . Prevented . | . . . . Kills | -11 -10 -9 -8 ------- Run | Jun Mat Mat Mat Combat Hostiles Destroyed 14 | . . 2 12 Melee 11 | . . . 11 Guns 2 | . . 2 . AOE 1 | . . . 1 Classes Destroyed 8 | 2 1 2 3 Worker 4 | 2 . 1 1 Recycler 1 | 1 . . . Operator 2 | . 1 . 1 Watcher 2 | . . 1 1 Grunt 10 | . . 2 8 Duelist 1 | . . . 1 Sentry 1 | . . . 1 Hunter 2 | . . . 2 Best Kill Streak 3 | 2 1 2 3 Combat Bots Only 2 | . . 2 2 Max Kills in Single Turn 1 | 1 1 1 1 Gunslinging . | . . . . Exploded 1 | . . . 1 Melee 1 | . . . 1 Uniques/NPCs Destroyed . | . . . . Combat | -11 -10 -9 -8 -------- Run | Jun Mat Mat Mat Damage Taken 2135 | . 207 181 1747 Core 671 | . 66 53 552 Absorbed by Shields . | . . . . Core Remaining (%) 86 | 100 73 86 . Volleys Fired 28 | 5 9 14 . Largest 2 | 2 2 2 . Hottest 40 | 40 40 40 . Shots Fired 43 | 10 18 15 . Gun 41 | 10 18 13 . Cannon . | . . . . Launcher . | . . . . Special 2 | . . 2 . Kinetic 31 | 10 18 3 . Thermal 2 | . . 2 . Explosive . | . . . . Electromagnetic 10 | . . 10 . Robot Hit Streak 5 | 5 3 5 . Robot Miss Streak 5 | 1 5 1 . Penetration Max . | . . . . Secondary Targets . | . . . . Shots Hit Robots 56 | 7 9 11 29 Core Hits 29 | 5 2 6 16 Critical Kills 1 | . . 1 . Critical Parts Destroyed . | . . . . Critical Strikes 2 | . . 1 1 Destroy 1 | . . 1 . Sever 1 | . . . 1 Melee Attacks 47 | . . . 47 Impact . | . . . . Slashing 47 | . . . 47 Piercing . | . . . . Sneak Attacks 3 | . . . 3 Combat Hostiles . | . . . . Follow-up Attacks . | . . . . Damage Inflicted 1989 | 64 73 127 1725 Guns 238 | 64 70 104 . Cannons . | . . . . Explosions 114 | . . . 114 Melee 1611 | . . . 1611 Ramming 3 | . 3 . . Kinetic 149 | 64 70 15 . Thermal 137 | . . 23 114 Explosive . | . . . . Electromagnetic 89 | . . 89 . Impact . | . . . . Slashing 1611 | . . . 1611 Piercing . | . . . . Highest Corruption . | . . . . Average Corruption . | . . . . Corruption Purged . | . . . . Corruption Blocked . | . . . . Overload Shots . | . . . . Overflow Damage 86 | . . . 86 Projectiles . | . . . . Explosions . | . . . . Melee 86 | . . . 86 Knockbacks . | . . . . Impact . | . . . . Kinetic . | . . . . Secondary . | . . . . Self-Inflicted Damage 1 | . 1 . . Shots . | . . . . Rammed 1 | . 1 . . Targets Rammed 1 | . 1 . . Kicked . | . . . . Crushed . | . . . . Highest Temperature 2 | . 2 . . Average Temperature 1 | . 1 . . Received Heat Transfer 1044 | . 114 111 819 Siege Activations . | . . . . Robots Corrupted . | . . . . Combat Hostiles . | . . . . Parts Fried . | . . . . Impact Corruptions . | . . . . Robots Melted . | . . . . Combat Hostiles . | . . . . Parts Melted . | . . . . Heat Transferred 174 | . . 74 100 Parts Sabotaged . | . . . . Parts Stolen . | . . . . Parts Stripped . | . . . . Power Chain Reactions . | . . . . Missiles Intercepted . | . . . . Alert | -11 -10 -9 -8 ------- Run | Jun Mat Mat Mat Peak Influence 381 | 15 111 147 381 Initial 59 | . 9 46 59 Average 141 | 4 34 94 240 Maximum Alert Level 1 | . . . 1 Low Security (%) 64 | 100 100 100 26 Level 1 35 | . . . 73 Level 2 . | . . . . Level 3 . | . . . . Level 4 . | . . . . Level 5 . | . . . . High Security . | . . . . Max Security . | . . . . Squads Dispatched 7 | . 3 . 4 Investigation 3 | . 1 . 2 Extermination . | . . . . Reinforcement 4 | . 2 . 2 Assault . | . . . . Garrison . | . . . . Intercept . | . . . . Searches Triggered . | . . . . Construction Impeded . | . . . . Haulers Reinforced . | . . . . Active Scanning Responses . | . . . . Cargo Convoy Interrupts . | . . . . Stealth | -11 -10 -9 -8 --------- Run | Jun Mat Mat Mat Distress Signals 4 | . . 1 3 Communications Jammed . | . . . . Distress Signals . | . . . . Times Spotted 47 | . 12 8 27 Peak Tracking Total 9 | . 9 5 8 Tactical Retreats 5 | . 2 1 2 Traps | -11 -10 -9 -8 ------- Run | Jun Mat Mat Mat Traps Triggered 1 | . 1 . . Indirectly . | . . . . Trap Hack Attempts . | . . . . Triggered . | . . . . Disarmed 6 | . 6 . . Reprogrammed . | . . . . Reused . | . . . . Traps Extracted . | . . . . Installed . | . . . . Triggered . | . . . . Machines | -11 -10 -9 -8 ---------- Run | Jun Mat Mat Mat Machines Disabled 3 | . . . 3 Max in Single Turn 2 | . . . 2 Machines Repaired . | . . . . Machines Sabotaged . | . . . . Overloaded Fab Kills . | . . . . Hacking | -11 -10 -9 -8 --------- Run | Jun Mat Mat Mat Machines Accessed 13 | . 3 4 6 Terminals 12 | . 3 4 5 Fabricators . | . . . . Repair Stations . | . . . . Recycling Units . | . . . . Scanalyzers 1 | . . . 1 Garrison Access . | . . . . Total Hacks 43 | . 14 10 19 Successful 23 | . 7 6 10 Failed 20 | . 7 4 9 Catastrophic 3 | . . 2 1 Database Lockouts . | . . . . Manual 37 | . 11 10 16 Terminals 40 | . 14 10 16 Fabricators . | . . . . Repair Stations . | . . . . Recycling Units . | . . . . Scanalyzers 3 | . . . 3 Garrison Access . | . . . . Terminal Hacks 4 | . 3 . 1 Terminal Index 2 | . 1 . 1 Disarm Traps 1 | . 1 . . Zone Layout 1 | . 1 . . Fabricator Hacks . | . . . . Repair Station Hacks . | . . . . Recycling Unit Hacks . | . . . . Scanalyzer 2 | . . . 2 Insert Component 1 | . . . 1 Analyze 1 | . . . 1 Garrison Access Hacks . | . . . . Unauthorized Hacks 17 | . 4 6 7 Terminals 17 | . 4 6 7 Track 2 | . . 2 . Assimilate 1 | . 1 . . Botnet 10 | . 2 3 5 Detonate 1 | . . . 1 Operators 3 | . 1 1 1 Fabricators . | . . . . Repair Stations . | . . . . Recycling Units . | . . . . Scanalyzers . | . . . . Garrison Access . | . . . . Data Cores Recovered . | . . . . Used . | . . . . Hacking Detections 13 | . 3 4 6 Full Trace Events 3 | . . 1 2 Feedback Events . | . . . . Feedback Blocked . | . . . . Robot Schematics Acquired . | . . . . Robots Built . | . . . . Authchips . | . . . . Time . | . . . . Total Robot Build Rating . | . . . . Part Schematics Acquired . | . . . . Parts Built . | . . . . Authchips . | . . . . Time . | . . . . Total Part Build Rating . | . . . . Parts Repaired . | . . . . Time . | . . . . Parts Recycled . | . . . . Recycled Matter . | . . . . Retrieved Matter . | . . . . Retrieved Components . | . . . . Parts Scanalyzed 1 | . . . 1 Part Schematics Acquired . | . . . . Parts Damaged . | . . . . Bothacking | -11 -10 -9 -8 ------------ Run | Jun Mat Mat Mat Used RIF Installer . | . . . . Robots Hacked . | . . . . Non-combat . | . . . . Combat . | . . . . Robot Hacks Applied . | . . . . Relay Couplers Released . | . . . . Fabnet Peak Effective % . | . . . . Robots Rewired . | . . . . Allies Hacked . | . . . . Hacks Repelled . | . . . . Allies | -11 -10 -9 -8 -------- Run | Jun Mat Mat Mat Total Allies . | . . . . Largest Group . | . . . . Highest-Rated Group . | . . . . Highest-Rated Ally . | . . . . Total Orders . | . . . . Ally Attacks . | . . . . Total Damage . | . . . . Kills . | . . . . Allies Corrupted . | . . . . Allies Melted . | . . . . Intel | -11 -10 -9 -8 ------- Run | Jun Mat Mat Mat Robot Analysis Total . | . . . . Derelict Logs Recovered . | . . . . Drone Launches . | . . . . Drone Recoveries . | . . . . Exploration | -11 -10 -9 -8 ------------- Run | Jun Mat Mat Mat Turns Passed 1225 | 123 290 222 590 Spaces Moved 997 | 64 231 291 411 Core 743 | 64 231 291 157 Treads . | . . . . Legs 218 | . . . 218 Wheels . | . . . . Hover 36 | . . . 36 Flight . | . . . . Fastest Speed 50 | 50 50 50 50 Average Speed 67 | 50 50 50 93 Slowest Speed 190 | 50 50 50 190 Overloaded Moves . | . . . . Propulsion Burnouts . | . . . . Robots Hopped . | . . . . Cave-ins Triggered . | . . . . Exploration Rate (%) 28 | 4 38 28 44 Regions Visited 3 Branch Regions . Pre-discovered Areas . | . . . . Known Exits Taken . | . . . . Unknown Exits Taken 3 | 1 1 1 . Scrap Searched . | . . . . Spaces Dug 5 | . . . 5 Terrain Destroyed 28 | . . . 28 Melee 5 | . . . 5 Projectile . | . . . . AOE 23 | . . . 23 Terrain Rammed . | . . . . Walls Destroyed . | . . . . Machines Disabled . | . . . . Actions | -11 -10 -9 -8 --------- Run | Jun Mat Mat Mat Total 1409 | 144 390 349 526 Wait 271 | 70 148 31 22 Move 994 | 63 230 290 411 Hop . | . . . . Pick Up 10 | 2 2 1 5 Fast Attach 25 | 4 . 7 14 Attach 3 | . . 1 2 Detach 6 | . . 2 4 Swap 6 | . . . 6 Drop 18 | . . 3 15 Fire 28 | 5 9 14 . Melee 47 | . . . 47 Ram 1 | . 1 . . Kick . | . . . . Crush . | . . . . Escape Stasis . | . . . . Rewire . | . . . . Trap . | . . . . Miscellaneous . | . . . . Route ------- -11/Junkyard -10/Materials -9/Materials -8/Materials History --------- Turn | Location | Event 6 | -11/Junkyard | Discovered new exit (range 15) 124 | -11/Junkyard | Entered Materials 315 | -10/Materials | Build established: Mutant 394 | -10/Materials | Discovered new exit (range 13) 414 | -10/Materials | Entered another Materials area 414 | -9/Materials | Evolved 2 slots: Utility x2 623 | -9/Materials | Discovered new exit (range 5) 636 | -9/Materials | Entered another Materials area 636 | -8/Materials | Evolved 2 slots: Propulsion x1, Utility x1 1056 | -8/Materials | Build established: Scavenger-Mutant 1169 | -8/Materials | Core integrity fell below 50% 1223 | -8/Materials | Core integrity fell below 20% 1226 | -8/Materials | Destroyed by G-47 Trooper with Particle Gun Last Messages --------------- 01182_ W-25 Informer sends out distress signal. 01186_ W-25 Informer destroyed. 01187_ K-01 Serf collects debris. 01194_ Critical hit (Burn: +37). 01195_ G-47 Trooper destroyed. 01196_ Aluminum Leg destroyed. 01196_ K-01 Serf collects debris. 01197_ ALERT: Suspicious intruders detected, dispatching Specialist reinforcements to area. 01198_ Sneak attack on K-01 Serf. 01198_ K-01 Serf destroyed. 01199_ Acquired 16 matter. 01200_ Critical hit (Burn: +37). 01202_ Acquired 34 matter. 01217_ Penetrated by Slug. 01217_ Carbon-fiber Leg destroyed. 01218_ Critical hit (Burn: +37). 01219_ Greatsword destroyed. 01219_ Carbon-fiber Leg destroyed. 01221_ R-06 Scavenger collects Wheel. Map ----- +----------------------------------------------------+ | ?????????????????????????????????????????????????? | | ?????????????????????????????????????????????????? | | ?????????????????????????????????????????????????? | | ?????????????????????????????????????????????????? | | ?????????????????????????????????????????????????? | | ?????????????????????????????????????????????????? | | ?????????????????????????????????????????????????? | | ?????????????????????????????????????????????????? | | ?????????????????????????????????????????????????? | | ??????????????????????????????? ?????????????? | | ???????????????????????????? ?? ?????????????? | | ???????????????????????????? ? ?????????????? | | ????????????????????????????? ?????????????? | | ?????????????????????????????## H ##########/??? | | ?????????????????????????????### ########### ??? | | ?????????????????????????????? # # = # ??? | | #####????????????????????????? # # """ # ??? | | #####????????????????????????? / + """""# ??? | | ##????????????????????????? # # """""# ??? | | ###???????????????????????? # #= """""# ??? | | !###????????????????? ?? # # =""" ##??? | | ###?????????????????##+##??## # !%= *##### | | ####????????????????## ##??## # *! *##### | | ####???????????????? # ###### #########/### | | # ##???????????????? # ###### ####### =%! # | | ####???????????????? #@ Y g # | | # ##???????????" + u m g + | | #### ##?????????????""" # g g # | | ####???????????????? ### #####/######## #=! | | ###????????????????? ### ## % ##### ## * | | ###???????????? ### ## ##### ## | | ###????????????#########/## ##?## ## | | ##?????????????## #] ##?## #### | | ##?????????????## ! # ##?## #### | | #########??????## # ##### #### | | ##########??????## [ # ##### #### | | ] # ##??????## # #### ### | | /%= ##??????## [# = #### %%= | | #%# ####????##* ############# T *=% | | # ################## ############# | | # #########T############/####### # ### | | # ^ ^^ / """ """ ####### | | # ##### """ """ ####### " | | # """"" ##### """ """ ####### " | | ##### ""T"" [ ##?## " + " | | ##### ##?## ####### | | ???## ^ ##?## [ ####### " | | ???## """ """ ##?## [ ##???## " | | ???## """ [[ """ ##?########+####???#### | | ???## """ [[ """ ##?####### ###???#### | +----------------------------------------------------+ Best States ------------- Heat Dissipation 38 Energy Generation 14 Energy Capacity 160 Matter Stores 300 Matter Capacity 300 Sight Range 18 Robot Scan Range 14 Terrain Scan Density 10 Base Temperature (-) 100 Evasion (%) 55 Targeting Accuracy 10 Item Schematics ----------------- None Robot Schematics ------------------ None Fabricated ------------ Nothing Alien Tech Used ----------------- None Achievements -------------- None Challenges ------------ None Game ------ Seed TerrabombDroneClaws Manual? 0 Play Time 00:23:37 Cumulative 126.9 hours Start 2023.05.09 @ 11:17:58 End 2023.05.09 @ 13:01:38 Sessions 1 Manual Loads 0 Difficulty Rogue Special Mode None Game No. 112 Rogue 112 Adventurer 0 Explorer 0 Win Type - Total 1 Types 1/0/0/0/0/0/0/0/0 Lore% 39 Gallery% 55 Achievement% 46 Wizard Run 0 Options --------- ASCII 0 Keyboard 0 Movement Numpad Keybinds 0 Fullscreen 2 Font 18/SmallcapsGlow Map View 76x50 Tactical HUD 1 Map Filters NONE Filters NONE Steam 1 RUN: 9984b3b7-ac7a-41f4-900b-feaccdae05ff